bitfinex-derivatives/quotes_BNBF0:USTF0_20250413
["timestamp","ask_amount","ask_price","bid_price","bid_amount"]
[1744584929127,0.58656318,583.04,582.71,0.452]
[1744584929427,0.58656318,583.03,582.71,0.452]
[1744584929620,0.58656318,583.02,582.71,0.452]
[1744584929820,0.58656318,583.01,582.71,0.452]
[1744584930126,0.58656318,583.0,582.71,0.452]
[1744584930427,0.58656318,582.99,582.71,0.452]
[1744584930626,0.58656318,582.98,582.71,0.452]
[1744584930821,0.58656318,582.97,582.71,0.452]
[1744584931024,0.216,583.15,582.71,0.452]
[1744584931327,0.58698939,583.14,582.71,0.452]
[1744584931527,0.58698939,583.13,582.71,0.452]
[1744584931826,0.58698939,583.12,582.71,0.452]
[1744584932019,0.58698939,583.11,582.71,0.452]
[1744584932223,0.58698939,583.1,582.71,0.452]
[1744584932425,0.58698939,583.09,582.71,0.452]
[1744584932621,0.58698939,583.08,582.71,0.452]
[1744584932926,0.58698939,583.07,582.71,0.452]
[1744584933121,0.58698939,583.06,582.71,0.452]
[1744584933325,0.58698939,583.05,582.71,0.452]
[1744584933526,0.58698939,583.04,582.71,0.452]
[1744584933725,0.58698939,583.03,582.71,0.452]
[1744584933924,0.58698939,583.02,582.71,0.452]
[1744584934120,0.58698939,583.01,582.71,0.452]
[1744584934323,0.58698939,583.0,582.71,0.452]
[1744584934524,0.58698939,582.99,582.71,0.452]
[1744584934726,0.58698939,582.98,582.71,0.452]
[1744584934927,0.58698939,582.97,582.71,0.452]
[1744584935124,0.216,583.15,582.71,0.452]
[1744584935328,0.58736356,583.14,582.71,0.452]
[1744584935528,0.58736356,583.13,582.71,0.452]
[1744584935828,0.58736356,583.12,582.72,0.625]
[1744584936028,0.58736356,583.11,582.72,0.625]
[1744584936226,0.58736356,583.1,582.72,0.625]
[1744584936430,0.58736356,583.09,582.72,0.625]
[1744584936626,0.58736356,583.08,582.72,0.625]
[1744584936830,0.58736356,583.07,582.72,0.625]
[1744584937029,0.58736356,583.06,582.72,0.625]
[1744584937229,0.58736356,583.05,582.72,0.625]
[1744584937532,0.58736356,583.04,582.72,0.625]
[1744584937724,0.58736356,583.03,582.72,0.625]
[1744584937928,0.58736356,583.02,582.72,0.625]
[1744584938126,0.58736356,583.01,582.72,0.625]
[1744584938331,0.58736356,583.0,582.72,0.625]
[1744584938524,0.58736356,582.99,582.72,0.625]
[1744584938728,0.216,583.15,582.72,0.625]
[1744584938929,0.58726602,583.14,582.72,0.625]
[1744584939128,0.58726602,583.13,582.72,0.625]
[1744584939329,0.58726602,583.12,582.72,0.625]
[1744584939632,0.58726602,583.11,582.72,0.625]
[1744584939834,0.58726602,583.1,582.72,0.625]
[1744584940034,0.58726602,583.09,582.72,0.625]
[1744584940234,0.58726602,583.08,582.72,0.625]
[1744584940434,0.58726602,583.07,582.72,0.625]
[1744584940631,0.58726602,583.06,582.72,0.625]
[1744584940835,0.58726602,583.05,582.72,0.625]
[1744584941032,0.58726602,583.04,582.72,0.625]
[1744584941235,0.58726602,583.03,582.73,0.31520042]
[1744584941434,0.58726602,583.02,582.73,0.31520042]
[1744584941637,0.58726602,583.01,582.72,0.625]
[1744584941838,0.58726602,583.0,582.72,0.625]
[1744584942039,0.58726602,582.99,582.72,0.625]
[1744584942337,0.58726602,582.98,582.72,0.625]
[1744584942538,0.216,583.15,582.72,0.625]
[1744584942735,0.58726048,583.14,582.72,0.625]
[1744584942936,0.58726048,583.13,582.72,0.625]
[1744584943134,0.58726048,583.12,582.72,0.625]
[1744584943335,0.58726048,583.11,582.73,0.475]
[1744584943533,0.58726048,583.1,582.73,0.475]
[1744584943737,0.58726048,583.09,582.73,0.475]
[1744584943938,0.58726048,583.08,582.73,0.475]
[1744584944139,0.58726048,583.07,582.73,0.475]
[1744584944339,0.58725054,583.06,582.73,0.475]
[1744584944532,0.216,583.15,582.73,0.475]
[1744584944533,0.58725054,583.05,582.73,0.475]
[1744584944737,0.58725054,583.04,582.73,0.475]
[1744584944934,0.58725054,583.03,582.73,0.475]
[1744584945238,0.216,583.15,582.73,0.475]
[1744584945239,0.58725054,583.02,582.73,0.475]
[1744584945439,0.58725054,583.01,582.73,0.475]
[1744584945634,0.216,583.15,582.73,0.475]
[1744584945635,0.58725054,583.0,582.73,0.475]
[1744584945934,0.58725054,582.99,582.73,0.475]
[1744584946138,0.58729492,582.98,582.73,0.475]
[1744584946435,0.216,583.15,582.73,0.475]
[1744584946639,0.58730236,583.14,582.73,0.475]
[1744584946840,0.58730236,583.13,582.73,0.475]
[1744584947036,0.58730236,583.12,582.73,0.475]
[1744584947235,0.58730236,583.11,582.73,0.475]
[1744584947434,0.58730236,583.1,582.73,0.475]
[1744584947635,0.58730236,583.09,582.73,0.475]
[1744584947839,0.58730236,583.08,582.73,0.475]
[1744584948041,0.58730236,583.07,582.73,0.475]
[1744584948238,0.58730236,583.06,582.73,0.475]
[1744584948433,0.58730236,583.05,582.73,0.475]
[1744584948637,0.58730236,583.04,582.73,0.475]
[1744584948836,0.58730236,583.03,582.73,0.475]
[1744584949040,0.58730236,583.02,582.73,0.475]
[1744584949241,0.58730236,583.01,582.73,0.475]
[1744584949440,0.58730236,583.0,582.73,0.475]
[1744584949640,0.58730236,582.99,582.73,0.475]
[1744584949842,0.58730236,582.98,582.73,0.475]
[1744584950042,0.58730236,582.97,582.73,0.475]
[1744584950341,0.58730236,582.96,582.73,0.475]
[1744584950543,0.34273571,583.54,582.73,0.475]
[1744584950742,0.90057925,583.53,582.73,0.475]
[1744584950942,0.90057925,583.52,582.73,0.475]
[1744584951140,0.90057925,583.51,582.73,0.475]
[1744584951338,0.90057916,583.5,582.73,0.475]
[1744584951538,0.90057916,583.49,582.73,0.475]
[1744584951842,0.90057916,583.48,582.73,0.475]
[1744584952043,0.90057916,583.47,582.73,0.475]
[1744584952243,0.90057916,583.46,582.73,0.475]
[1744584952443,0.90057916,583.45,582.73,0.475]
[1744584952643,0.58730232,583.44,582.73,0.475]
[1744584952843,0.58730232,583.43,582.73,0.475]
[1744584953051,0.58730232,583.42,582.73,0.475]
[1744584953346,0.58761692,583.41,582.73,0.475]
[1744584953544,0.58761692,583.4,582.73,0.475]
[1744584953738,0.58761692,583.39,582.73,0.475]
[1744584953942,0.58761692,583.38,582.73,0.475]
[1744584954141,0.58761692,583.37,582.73,0.475]
[1744584954343,0.58761692,583.36,582.73,0.475]
[1744584954542,0.58761692,583.35,582.73,0.475]
[1744584954739,0.58761692,583.34,582.73,0.475]
[1744584954940,0.58761692,583.33,582.73,0.475]
[1744584955145,0.58761692,583.32,582.73,0.475]
[1744584955345,0.58761692,583.31,582.73,0.475]
[1744584955546,0.58761692,583.3,582.73,0.475]
[1744584955749,0.58761692,583.29,582.73,0.475]
[1744584955949,0.58761692,583.28,582.73,0.475]
[1744584956147,0.58761692,583.27,582.73,0.475]
[1744584956345,0.58761692,583.26,582.73,0.475]
[1744584956551,0.58761692,583.25,582.73,0.475]
[1744584956750,0.58761692,583.24,582.73,0.475]
[1744584956946,0.58761692,583.23,582.73,0.475]
[1744584957147,0.58761692,583.22,582.73,0.475]
[1744584957451,0.58761692,583.21,582.73,0.475]
[1744584957746,0.58761692,583.2,582.73,0.475]
[1744584957950,0.58761692,583.19,582.73,0.475]
[1744584958253,0.58765711,583.18,582.73,0.475]
[1744584958451,0.58765711,583.17,582.73,0.475]
[1744584958646,0.58765711,583.16,582.73,0.475]
[1744584958845,0.58765711,583.15,582.73,0.475]
[1744584959049,0.58765711,583.14,582.73,0.475]
[1744584959252,0.58765711,583.13,582.73,0.475]
[1744584959452,0.58765711,583.12,582.73,0.475]
[1744584959649,0.58765711,583.11,582.73,0.475]
[1744584959848,0.58765711,583.1,582.73,0.475]
[1744584960056,0.58765711,583.09,582.73,0.475]
[1744584960354,0.58765711,583.08,582.73,0.475]
[1744584960655,0.58765711,583.07,582.73,0.475]
[1744584960855,0.58765711,583.06,582.73,0.475]
[1744584961054,0.58765711,583.05,582.73,0.475]
[1744584961255,0.58765711,583.04,582.73,0.475]
[1744584961456,0.58765711,583.03,582.73,0.475]
[1744584961656,0.58765711,583.02,582.73,0.475]
[1744584961856,0.58765711,583.01,582.73,0.475]
[1744584962156,0.216,583.53,582.73,0.475]
[1744584962157,0.58765711,583.0,582.73,0.475]
[1744584962352,0.58765711,582.99,582.73,0.475]
[1744584962558,0.58765711,582.98,582.73,0.475]
[1744584962754,0.58765711,582.97,582.73,0.475]
[1744584962955,0.216,583.53,582.73,0.475]
[1744584962956,0.58765711,582.96,582.73,0.475]
[1744584963152,0.58765711,582.95,582.73,0.475]
[1744584963357,0.58765711,582.94,582.73,0.475]
[1744584963558,0.58765711,582.93,582.73,0.475]
[1744584963858,0.58765711,582.92,582.73,0.475]
[1744584964058,0.216,583.53,582.73,0.475]
[1744584964260,0.90163191,583.52,582.73,0.475]
[1744584964455,0.90163191,583.51,582.73,0.475]
[1744584964655,0.90163191,583.5,582.73,0.475]
[1744584964959,0.90163191,583.49,582.73,0.475]
[1744584965155,0.90163191,583.48,582.73,0.475]
[1744584965356,0.58804474,583.47,582.73,0.475]
[1744584965560,0.58804474,583.46,582.73,0.475]
[1744584965756,0.58804474,583.45,582.73,0.475]
[1744584965961,0.58804474,583.44,582.73,0.475]
[1744584966161,0.90163032,583.43,582.73,0.475]
[1744584966355,0.90163032,583.42,582.73,0.475]
[1744584966563,0.90163032,583.41,582.74,0.415]
[1744584966762,0.58804474,583.4,582.74,0.415]
[1744584966962,0.58804474,583.39,582.74,0.415]
[1744584967164,0.58804474,583.38,582.74,0.415]
[1744584967365,0.58804474,583.37,582.74,0.415]
[1744584967660,0.58804474,583.36,582.74,0.415]
[1744584967864,0.58804474,583.35,582.74,0.415]
[1744584968065,0.58804474,583.34,582.74,0.415]
[1744584968261,0.58804474,583.33,582.74,0.415]
[1744584968469,0.58804474,583.32,582.74,0.415]
[1744584968669,0.58804474,583.31,582.74,0.415]
[1744584968872,0.58804474,583.3,582.74,0.415]
[1744584969073,0.58804474,583.29,582.75,0.544]
[1744584969371,0.58804474,583.28,582.75,0.544]
[1744584969573,0.58804474,583.27,582.75,0.544]
[1744584969772,0.34273571,583.54,582.75,0.544]
[1744584969773,0.58804474,583.26,582.75,0.544]
[1744584969972,0.58804474,583.25,582.75,0.544]
[1744584970173,0.58804474,583.24,582.75,0.544]
[1744584970370,0.58804474,583.23,582.75,0.544]
[1744584970567,0.58821176,583.22,582.75,0.544]
[1744584970772,0.58821176,583.21,582.75,0.544]
[1744584971072,0.58821176,583.2,582.75,0.544]
[1744584971374,0.58821176,583.19,582.76,0.448]
[1744584971571,0.58821176,583.18,582.76,0.448]
[1744584971772,0.58821176,583.17,582.76,0.448]
[1744584971970,0.58821176,583.16,582.76,0.448]
[1744584972171,0.58821176,583.15,582.76,0.448]
[1744584972373,0.58820806,583.14,582.76,0.448]
[1744584972573,0.58820806,583.13,582.76,0.448]
[1744584972774,0.58820806,583.12,582.76,0.448]
[1744584972972,0.58820806,583.11,582.76,0.448]
[1744584973168,0.58820806,583.1,582.76,0.448]
[1744584973374,0.58820806,583.09,582.76,0.448]
[1744584973581,0.58820806,583.08,582.76,0.448]
[1744584973874,0.58820806,583.07,582.76,0.448]
[1744584974071,0.58820806,583.06,582.76,0.448]
[1744584974269,0.58820806,583.05,582.76,0.448]
[1744584974470,0.58820806,583.04,582.76,0.448]
[1744584974671,0.58820806,583.03,582.76,0.448]
[1744584974967,0.58820806,583.02,582.76,0.448]
[1744584975171,0.58820806,583.01,582.76,0.448]
[1744584975376,0.58820806,583.0,582.76,0.448]
[1744584975575,0.58820806,582.99,582.76,0.448]
[1744584975771,0.58820806,582.98,582.76,0.448]
[1744584975972,0.58787728,582.97,582.76,0.448]
[1744584976174,0.58787728,582.96,582.76,0.448]
[1744584976371,0.58787728,582.95,582.76,0.448]
[1744584976576,0.58787728,582.94,582.76,0.448]
[1744584976773,0.58787728,582.93,582.76,0.448]
[1744584976972,0.58787728,582.92,582.76,0.448]
[1744584977172,0.58787728,582.91,582.76,0.448]
[1744584977374,0.58787728,582.9,582.76,0.448]
[1744584977670,0.58787728,582.89,582.76,0.448]
[1744584977873,0.58787728,582.88,582.76,0.448]
[1744584978073,0.216,583.16,582.76,0.448]
[1744584978275,0.58781391,583.15,582.76,0.448]
[1744584978477,0.58781391,583.14,582.76,0.448]
[1744584978676,0.58781391,583.13,582.76,0.448]
[1744584978877,0.58781391,583.12,582.76,0.448]
[1744584979073,0.58781391,583.11,582.76,0.448]
[1744584979279,0.58781391,583.1,582.76,0.448]
[1744584979474,0.58781391,583.09,582.76,0.448]
[1744584979675,0.58781391,583.08,582.76,0.448]
[1744584979878,0.58781391,583.07,582.76,0.448]
[1744584980076,0.58781391,583.06,582.76,0.448]
[1744584980277,0.58781391,583.05,582.76,0.448]
[1744584980480,0.216,583.16,582.76,0.448]
[1744584980481,0.58781391,583.04,582.76,0.448]
[1744584980680,0.58781391,583.03,582.76,0.448]
[1744584980875,0.58781391,583.02,582.76,0.448]
[1744584981078,0.58781391,583.01,582.76,0.448]
[1744584981375,0.58781391,583.0,582.76,0.448]
[1744584981580,0.58781391,582.99,582.76,0.448]
[1744584981880,0.58781391,582.98,582.76,0.448]
[1744584982076,0.58781391,582.97,582.76,0.448]
[1744584982277,0.58781391,582.96,582.76,0.448]
[1744584982478,0.58781391,582.95,582.76,0.448]
[1744584982679,0.58781391,582.94,582.76,0.448]
[1744584982978,0.58781391,582.93,582.76,0.448]
[1744584983178,0.58759192,582.92,582.76,0.448]
[1744584983397,0.58759192,582.91,582.76,0.448]
[1744584983675,0.58759192,582.9,582.76,0.448]
[1744584983878,0.34273571,583.54,582.76,0.448]
[1744584984075,0.90089328,583.53,582.76,0.448]
[1744584984280,0.90089328,583.52,582.76,0.448]
[1744584984482,0.90089328,583.51,582.76,0.448]
[1744584984682,0.90089328,583.5,582.76,0.448]
[1744584984884,0.90089328,583.49,582.76,0.448]
[1744584985082,0.90089328,583.48,582.76,0.448]
[1744584985382,0.90089328,583.47,582.76,0.448]
[1744584985582,0.90089328,583.46,582.76,0.448]
[1744584985782,0.90089328,583.45,582.76,0.448]
[1744584985979,0.90089328,583.44,582.76,0.448]
[1744584986184,0.90089328,583.43,582.76,0.448]
[1744584986382,0.90089328,583.42,582.76,0.448]
[1744584986584,0.90070373,583.41,582.76,0.448]
[1744584986783,0.90070373,583.4,582.76,0.448]
[1744584987083,0.90070373,583.39,582.76,0.448]
[1744584987279,0.90070373,583.38,582.76,0.448]
[1744584987478,0.90070373,583.37,582.76,0.448]
[1744584987679,0.90070373,583.36,582.76,0.448]
[1744584987880,0.90070373,583.35,582.76,0.448]
[1744584988077,0.90070373,583.34,582.76,0.448]
[1744584988281,0.90070373,583.33,582.76,0.448]
[1744584988482,0.90070373,583.32,582.76,0.448]
[1744584988683,0.90070373,583.31,582.76,0.448]
[1744584988982,0.216,583.41,582.76,0.448]
[1744584988983,0.90059196,583.3,582.76,0.448]
[1744584989183,0.58735376,583.29,582.76,0.448]
[1744584989383,0.58735376,583.28,582.76,0.448]
[1744584989583,0.58735376,583.27,582.76,0.448]
[1744584989777,0.58735376,583.26,582.76,0.448]
[1744584989981,0.58735376,583.25,582.76,0.448]
[1744584990177,0.58685478,583.24,582.76,0.448]
[1744584990381,0.58685478,583.23,582.76,0.448]
[1744584990580,0.58685478,583.22,582.76,0.448]
[1744584990782,0.58685478,583.21,582.76,0.448]
[1744584990979,0.58685478,583.2,582.76,0.448]
[1744584991178,0.58685478,583.19,582.76,0.448]
[1744584991382,0.58685478,583.18,582.76,0.448]
[1744584991682,0.58685478,583.17,582.76,0.448]
[1744584991884,0.58670552,583.16,582.76,0.448]
[1744584992080,0.58670552,583.15,582.76,0.448]
[1744584992278,0.216,583.41,582.76,0.448]
[1744584992279,0.58670552,583.14,582.76,0.448]
[1744584992482,0.58670552,583.13,582.76,0.448]
[1744584992783,0.58670552,583.12,582.76,0.448]
[1744584992979,0.58670552,583.11,582.76,0.448]
[1744584993181,0.58670552,583.1,582.76,0.448]
[1744584993382,0.58670552,583.09,582.76,0.448]
[1744584993578,0.58670552,583.08,582.76,0.448]
[1744584993780,0.58670552,583.07,582.76,0.448]
[1744584993982,0.58670552,583.06,582.76,0.448]
[1744584994182,0.58670552,583.05,582.76,0.448]
[1744584994382,0.58670552,583.04,582.76,0.448]
[1744584994684,0.58670552,583.03,582.76,0.448]
[1744584994878,0.58670552,583.02,582.76,0.448]
[1744584995081,0.58670552,583.01,582.76,0.448]
[1744584995282,0.58670552,583.0,582.76,0.448]
[1744584995485,0.58629101,582.99,582.76,0.448]
[1744584995678,0.58629101,582.98,582.76,0.448]
[1744584995878,0.58629101,582.97,582.76,0.448]
[1744584996078,0.58629101,582.96,582.76,0.448]
[1744584996284,0.58629101,582.95,582.76,0.448]
[1744584996580,0.58629101,582.94,582.76,0.448]
[1744584996778,0.58629101,582.93,582.76,0.448]
[1744584996983,0.58629101,582.92,582.76,0.448]
[1744584997185,0.58629101,582.91,582.76,0.448]
[1744584997383,0.58629101,582.9,582.76,0.448]
[1744584997586,0.58629101,582.89,582.76,0.448]
[1744584997786,0.58629101,582.88,582.76,0.448]
[1744584997986,0.58629101,582.87,582.76,0.448]
[1744584998187,0.58621742,582.86,582.76,0.448]
[1744584998387,0.58621742,582.85,582.76,0.448]
[1744584998583,0.58621742,582.84,582.76,0.448]
[1744584998785,0.58621742,582.83,582.76,0.448]
[1744584998984,0.58621742,582.82,582.76,0.448]
[1744584999188,0.216,583.41,582.76,0.448]
[1744584999387,0.58615457,583.4,582.76,0.448]
[1744584999587,0.58615457,583.39,582.76,0.448]
[1744584999887,0.58615457,583.38,582.76,0.448]
[1744585000089,0.58615457,583.37,582.77,0.438]
[1744585000289,0.58615457,583.36,582.77,0.438]
[1744585000487,0.58615457,583.35,582.77,0.438]
[1744585000692,0.58615457,583.34,582.77,0.438]
[1744585000889,0.58615457,583.33,582.77,0.438]
[1744585001089,0.58615457,583.32,582.77,0.438]
[1744585001287,0.58615457,583.31,582.77,0.438]
[1744585001488,0.58615457,583.3,582.77,0.438]
[1744585001690,0.89931927,583.29,582.77,0.438]
[1744585001888,0.89931927,583.28,582.77,0.966]
[1744585002087,0.58615457,583.27,582.77,0.966]
[1744585002287,0.58615457,583.26,582.77,0.966]
[1744585002493,0.58584576,583.25,582.77,0.966]
[1744585002690,0.58584576,583.24,582.77,0.966]
[1744585002889,0.58584576,583.23,582.77,0.966]
[1744585003089,0.58584576,583.22,582.77,0.966]
[1744585003292,0.58584576,583.21,582.77,0.966]
[1744585003492,0.58584576,583.2,582.77,0.966]
[1744585003792,0.58584576,583.19,582.77,0.966]
[1744585003993,0.58584576,583.18,582.77,0.966]
[1744585004193,0.58584576,583.17,582.77,0.966]
[1744585004393,0.58584576,583.16,582.77,0.966]
[1744585004596,0.58584576,583.15,582.77,0.966]
[1744585004789,0.58584576,583.14,582.77,0.966]
[1744585004993,0.58584576,583.13,582.77,0.966]
[1744585005189,0.58584576,583.12,582.77,0.966]
[1744585005389,0.58584576,583.11,582.77,0.966]
[1744585005695,0.58584576,583.1,582.77,0.966]
[1744585005894,0.58584576,583.09,582.77,0.966]
[1744585006091,0.58586645,583.08,582.77,0.966]
[1744585006292,0.58586645,583.07,582.77,0.966]
[1744585006489,0.58586645,583.06,582.77,0.966]
[1744585006692,0.58586645,583.05,582.77,0.966]
[1744585006892,0.58586645,583.04,582.77,0.966]
[1744585007096,0.58586645,583.03,582.77,0.966]
[1744585007295,0.58586645,583.02,582.77,0.966]
[1744585007489,0.58586645,583.01,582.77,0.966]
[1744585007690,0.58594563,583.0,582.77,0.966]
[1744585007889,0.58594563,582.99,582.77,0.966]
[1744585008089,0.58594563,582.98,582.77,0.966]
[1744585008294,0.58594563,582.97,582.77,0.966]
[1744585008591,0.58594563,582.96,582.77,0.966]
[1744585008793,0.58594563,582.95,582.77,0.966]
[1744585008988,0.58594563,582.94,582.77,0.966]
[1744585009192,0.58594563,582.93,582.77,0.966]
[1744585009396,0.58594563,582.92,582.77,0.966]
[1744585009591,0.58594563,582.91,582.77,0.966]
[1744585009790,0.58594563,582.9,582.77,0.966]
[1744585009995,0.58594563,582.89,582.77,0.966]
[1744585010196,0.58594563,582.88,582.77,0.966]
[1744585010397,0.58594563,582.87,582.77,0.966]
[1744585010596,0.58594563,582.86,582.77,0.966]
[1744585010794,0.58594563,582.85,582.77,0.966]
[1744585010997,0.216,583.41,582.77,0.966]
[1744585011197,0.58600054,583.4,582.77,0.966]
[1744585011399,0.58600054,583.39,582.77,0.966]
[1744585011593,0.58600054,583.38,582.77,0.966]
[1744585011794,0.58600054,583.37,582.77,0.966]
[1744585011997,0.58600054,583.36,582.77,0.966]
[1744585012296,0.58600054,583.35,582.77,0.966]
[1744585012492,0.58600054,583.34,582.77,0.966]
[1744585012693,0.58600054,583.33,582.77,0.966]
[1744585012893,0.58600054,583.32,582.77,0.966]
[1744585013094,0.58600054,583.31,582.77,0.966]
[1744585013298,0.58600054,583.3,582.77,0.966]
[1744585013499,0.58600054,583.29,582.77,0.966]
[1744585013798,0.34273571,583.54,582.77,0.966]
[1744585013799,0.58600054,583.28,582.77,0.966]
[1744585014000,0.58600054,583.27,582.77,0.966]
[1744585014196,0.58600054,583.26,582.77,0.966]
[1744585014401,0.58600054,583.25,582.77,0.966]
[1744585014601,0.58600054,583.24,582.77,0.966]
[1744585014802,0.58600054,583.23,582.77,0.966]
[1744585015002,0.58600054,583.22,582.77,0.966]
[1744585015202,0.58600054,583.21,582.77,0.966]
[1744585015502,0.58600054,583.2,582.77,0.966]
[1744585015802,0.58600054,583.19,582.77,0.966]
[1744585016001,0.58600054,583.18,582.77,0.966]
[1744585016302,0.58600054,583.17,582.77,0.966]
[1744585016501,0.58600054,583.16,582.77,0.966]
[1744585016700,0.5861996,583.15,582.77,0.966]
[1744585016900,0.5861996,583.14,582.77,0.966]
[1744585017100,0.5861996,583.13,582.77,0.438]
[1744585017302,0.5861996,583.12,582.77,0.438]
[1744585017502,0.5861996,583.11,582.77,0.438]
[1744585017703,0.5861996,583.1,582.77,0.438]
[1744585017903,0.5861996,583.09,582.77,0.438]
[1744585018202,0.5861996,583.08,582.77,0.438]
[1744585018404,0.58625043,583.07,582.77,0.438]
[1744585018702,0.58625043,583.06,582.77,0.438]
[1744585018904,0.58625043,583.05,582.77,0.438]
[1744585019105,0.58625043,583.04,582.77,0.438]
[1744585019303,0.58625043,583.03,582.77,0.438]
[1744585019604,0.58625043,583.02,582.77,0.438]
[1744585019804,0.58625043,583.01,582.77,0.438]
[1744585020005,0.58625043,583.0,582.77,0.438]
[1744585020210,0.58629999,582.99,582.77,0.438]
[1744585020507,0.58629999,582.98,582.77,0.438]
[1744585020705,0.58629999,582.97,582.77,0.438]
[1744585020908,0.58629999,582.96,582.77,0.438]
[1744585021100,0.58629999,582.95,582.77,0.438]
[1744585021301,0.58629999,582.94,582.77,0.438]
[1744585021500,0.216,583.16,582.77,0.438]
[1744585021806,0.58636908,583.15,582.77,0.438]
[1744585022005,0.58636908,583.14,582.77,0.438]
[1744585022205,0.58636908,583.13,582.77,0.438]
[1744585022406,0.58636908,583.12,582.77,0.438]
[1744585022607,0.58636908,583.11,582.77,0.438]
[1744585022804,0.58636908,583.1,582.77,0.438]
[1744585023004,0.58636908,583.09,582.77,0.438]
[1744585023202,0.58636908,583.08,582.77,0.438]
[1744585023407,0.58636908,583.07,582.77,0.438]
[1744585023608,0.58636908,583.06,582.77,0.438]
[1744585023809,0.58636908,583.05,582.77,0.438]
[1744585024006,0.58636908,583.04,582.77,0.438]
[1744585024207,0.58636908,583.03,582.77,0.438]
[1744585024411,0.58636908,583.02,582.77,0.438]
[1744585024610,0.58636908,583.01,582.77,0.438]
[1744585024911,0.58645863,583.0,582.77,0.438]
[1744585025109,0.58645863,582.99,582.77,0.438]
[1744585025309,0.58645863,582.98,582.77,0.438]
[1744585025506,0.216,583.16,582.77,0.438]
[1744585025507,0.58645863,582.97,582.77,0.438]
[1744585025706,0.58645863,582.96,582.77,0.438]
[1744585025908,0.58645863,582.95,582.77,0.438]
[1744585026106,0.58645863,582.94,582.77,0.438]
[1744585026306,0.58645863,582.93,582.77,0.438]
[1744585026507,0.58645863,582.92,582.77,0.438]
[1744585026708,0.58645863,582.91,582.77,0.438]
[1744585026910,0.216,583.16,582.77,0.438]
[1744585027111,0.58651744,583.15,582.77,0.438]
[1744585027311,0.58651744,583.14,582.77,0.438]
[1744585027511,0.58651744,583.13,582.77,0.438]
[1744585027713,0.58651744,583.12,582.77,0.438]
[1744585027912,0.58651744,583.11,582.77,0.438]
[1744585028208,0.58651744,583.1,582.77,0.438]
[1744585028405,0.58651744,583.09,582.77,0.438]
[1744585028608,0.58651744,583.08,582.77,0.438]
[1744585028806,0.58651744,583.07,582.77,0.438]
[1744585029006,0.58651744,583.06,582.77,0.438]
[1744585029207,0.58651744,583.05,582.77,0.438]
[1744585029411,0.58651744,583.04,582.77,0.438]
[1744585029611,0.58651744,583.03,582.77,0.438]
[1744585029912,0.58651744,583.02,582.77,0.438]
[1744585030113,0.58651744,583.01,582.77,0.438]
[1744585030309,0.58651744,583.0,582.77,0.438]
[1744585030507,0.58651744,582.99,582.77,0.438]
[1744585030710,0.58651744,582.98,582.77,0.438]
[1744585030911,0.58651744,582.97,582.77,0.438]
[1744585031107,0.58651744,582.96,582.77,0.438]
[1744585031310,0.216,583.16,582.77,0.438]
[1744585031506,0.58659471,583.15,582.77,0.438]
[1744585031713,0.58659471,583.14,582.77,1.035]
[1744585031914,0.58659471,583.13,582.77,1.035]
[1744585032114,0.58659471,583.12,582.77,1.035]
[1744585032413,0.58659471,583.11,582.77,1.035]
[1744585032609,0.58659471,583.1,582.77,1.035]
[1744585032809,0.58659471,583.09,582.77,1.035]